fUST/lending_fUST_20240116
["ID","MTS","AMOUNT","RATE_DAILY","PERIOD"]
[311742838,1705372243499,-500.0,0.00024348,2]
[311742839,1705372243511,-500.0,0.00024348,2]
[311742840,1705372243521,-570.11,0.00024348,2]
[311742841,1705372243530,-166.666666,0.00024482,2]
[311742842,1705372243540,-1743.77135027,0.00024568,2]
[311742843,1705372243549,-193.59611591,0.00024569,2]
[311742844,1705372243559,-500.0,0.00024569,2]
[311742845,1705372243568,-500.0,0.00024569,2]
[311742846,1705372243577,-590.96,0.00024569,2]
[311742847,1705372243587,-500.0,0.00024569,2]
[311742848,1705372243596,-500.0,0.00024569,2]
[311742849,1705372243606,-500.0,0.00024569,2]
[311742850,1705372243615,-2891.21,0.00024569,2]
[311742851,1705372243624,-2317.56,0.00024569,2]
[311742852,1705372243634,-500.0,0.00024569,2]
[311742853,1705372243643,-500.0,0.00024569,2]
[311742854,1705372243652,-500.0,0.0002457,2]
[311742855,1705372243662,-500.0,0.0002457,2]
[311742856,1705372243671,-563.12,0.0002457,2]
[311742857,1705372243680,-454.92289088,0.0002457,2]
[311742858,1705372243688,-793.55,0.0002457,2]
[311742859,1705372243698,-500.0,0.0002457,2]
[311742860,1705372243707,-500.0,0.0002457,2]
[311742861,1705372243717,-1342.2,0.0002457,2]
[311742862,1705372243727,-676.67,0.0002457,2]
[311742863,1705372243736,-500.0,0.0002457,2]
[311742864,1705372243744,-500.0,0.0002457,2]
[311742865,1705372243753,-555.12,0.0002457,2]
[311742866,1705372243762,-500.0,0.0002457,2]
[311742867,1705372243771,-1117.16,0.00024571,2]
[311742868,1705372243781,-462.69605503,0.00024571,2]
[311742869,1705372243791,-611.31,0.00024571,2]
[311742870,1705372243800,-500.0,0.00024571,2]
[311742871,1705372243809,-500.0,0.00024571,2]
[311742872,1705372243818,-1666.73,0.00024571,2]
[311742873,1705372243827,-1189.74,0.00024571,2]
[311742874,1705372243836,-1013.92,0.00024583,2]
[311742875,1705372243846,-509.32,0.00024583,2]
[311742876,1705372243855,-7452.29,0.00024583,2]
[311742877,1705372243864,-8889.07,0.00024583,2]
[311742878,1705372243873,-163.8928004,0.00024606,2]
[311742879,1705372243882,-2203.8,0.00024622,2]
[311742880,1705372243891,-500.0,0.00024622,2]
[311742881,1705372243900,-500.0,0.00024622,2]
[311742882,1705372243910,-570.11,0.00024622,2]
[311742883,1705372243921,-388.5668798,0.00024657,2]
[311742884,1705372243931,-380.0,0.00024658,2]
[311742885,1705372243941,-500.0,0.00024843,2]
[311742886,1705372243952,-500.0,0.00024843,2]
[311742887,1705372243962,-590.96,0.00024843,2]
[311742888,1705372243972,-500.0,0.00024843,2]
[311742889,1705372243981,-500.0,0.00024843,2]
[311742890,1705372243990,-500.0,0.00024843,2]
[311742891,1705372244000,-2891.21,0.00024843,2]
[311742892,1705372244010,-2317.56,0.00024843,2]
[311742893,1705372244019,-500.0,0.00024843,2]
[311742894,1705372244028,-500.0,0.00024843,2]
[311742895,1705372244038,-500.0,0.00024844,2]
[311742896,1705372244047,-500.0,0.00024844,2]
[311742897,1705372244057,-563.12,0.00024844,2]
[311742898,1705372244066,-793.55,0.00024844,2]
[311742899,1705372244076,-500.0,0.00024844,2]
[311742900,1705372244085,-500.0,0.00024844,2]
[311742901,1705372244094,-1342.2,0.00024844,2]
[311742902,1705372244106,-676.67,0.00024844,2]
[311742903,1705372244115,-500.0,0.00024844,2]
[311742904,1705372244124,-500.0,0.00024844,2]
[311742905,1705372244133,-555.12,0.00024844,2]
[311742906,1705372244143,-500.0,0.00024844,2]
[311742907,1705372244152,-1117.16,0.00024845,2]
[311742908,1705372244162,-611.31,0.00024845,2]
[311742909,1705372244173,-500.0,0.00024845,2]
[311742910,1705372244183,-500.0,0.00024845,2]
[311742911,1705372244193,-1666.73,0.00024845,2]
[311742912,1705372244202,-1189.74,0.00024845,2]
[311742913,1705372244212,-1013.92,0.00024857,2]
[311742914,1705372244222,-509.32,0.00024857,2]
[311742915,1705372244231,-7452.29,0.00024857,2]
[311742916,1705372244241,-8889.07,0.00024857,2]
[311742917,1705372244251,-2203.8,0.00024896,2]
[311742918,1705372244260,-500.0,0.00024896,2]
[311742919,1705372244269,-500.0,0.00024896,2]
[311742920,1705372244279,-570.11,0.00024896,2]
[311742921,1705372244288,-497.68470195,0.0002495,5]
[311742922,1705372244297,-1045.05948708,0.00025,2]
[311742923,1705372244307,-155.0,0.00025,2]
[311742924,1705372244316,-4716.82638211,0.00025,2]
[311742925,1705372244325,-678.60233026,0.00025,2]
[311742926,1705372244334,-526.37426026,0.00025116,4]
[311742927,1705372244343,-500.0,0.00025117,2]
[311742928,1705372244352,-500.0,0.00025117,2]
[311742929,1705372244362,-590.96,0.00025117,2]
[311742930,1705372244371,-500.0,0.00025117,2]
[311742931,1705372244380,-500.0,0.00025117,2]
[311742932,1705372244390,-500.0,0.00025117,2]
[311742933,1705372244399,-2891.21,0.00025117,2]
[311742934,1705372244409,-2317.56,0.00025117,2]
[311742935,1705372244418,-500.0,0.00025117,2]
[311742936,1705372244427,-345.24240155,0.00025117,2]
[311742937,1705372244436,-500.0,0.00025118,2]
[311742938,1705372244445,-500.0,0.00025118,2]
[311742939,1705372244454,-563.12,0.00025118,2]
[311742940,1705372244527,-793.55,0.00025118,2]
[311742941,1705372244545,-500.0,0.00025118,2]
[311742942,1705372244554,-500.0,0.00025118,2]
[311742943,1705372244563,-1342.2,0.00025118,2]
[311742944,1705372244572,-676.67,0.00025118,2]
[311742945,1705372244581,-500.0,0.00025118,2]
[311742946,1705372244590,-500.0,0.00025118,2]
[311742947,1705372244599,-555.12,0.00025118,2]
[311742948,1705372244608,-500.0,0.00025118,2]
[311742949,1705372244618,-1117.16,0.00025119,2]
[311742950,1705372244627,-611.31,0.00025119,2]
[311742951,1705372244636,-468.31112396,0.00025119,2]
[311742952,1705372244646,-500.0,0.00025119,2]
[311742953,1705372244655,-1666.73,0.00025119,2]
[311742954,1705372244665,-1189.74,0.00025119,2]
[311742955,1705372244674,-1013.92,0.00025131,2]
[311742956,1705372244686,-509.32,0.00025131,2]
[311742957,1705372244696,-7452.29,0.00025131,2]
[311742958,1705372244706,-8889.07,0.00025131,2]
[311742959,1705372244716,-2203.8,0.0002517,2]
[311742960,1705372244726,-500.0,0.0002517,2]
[311742961,1705372244735,-500.0,0.0002517,2]
[311742962,1705372244745,-570.11,0.0002517,2]
[311742963,1705372244754,-163.8928004,0.00025291,2]
[311742964,1705372244763,-500.0,0.00025391,2]
[311742965,1705372244773,-500.0,0.00025391,2]
[311742966,1705372244782,-590.96,0.00025391,2]
[311742967,1705372244791,-500.0,0.00025391,2]
[311742968,1705372244800,-500.0,0.00025391,2]
[311742969,1705372244810,-500.0,0.00025391,2]
[311742970,1705372244819,-2891.21,0.00025391,2]
[311742971,1705372244829,-2317.56,0.00025391,2]
[311742972,1705372244837,-500.0,0.00025391,2]
[311742973,1705372244846,-495.7661798,0.00025392,2]
[311742974,1705372245365,-500.0,0.0002243,2]
[311742975,1705372245375,-1320.08280925,0.00022641,3]
[311742976,1705372245386,-373.83719075,0.00022641,3]
[311742977,1705372245395,-390.92951651,0.00022704,2]
[311742978,1705372245421,-109.07048349,0.00022704,2]
[311742979,1705372245431,-500.0,0.00022978,2]
[311742980,1705372245440,-500.0,0.00023252,2]
[311742981,1705372245449,-300.91,0.00023526,2]
[311742982,1705372245460,-500.0,0.0002402,2]
[311742983,1705372245469,-159.28866936,0.0002402,2]
[311743016,1705372245853,-335.62645741,0.0002402,2]
[311743018,1705372245863,-616.23191046,0.0002402,2]
[311743021,1705372245873,-1489.77925188,0.00024035,2]
[311743023,1705372245885,-526.88074812,0.00024035,2]
[311743025,1705372245894,-2016.66,0.00024309,2]
[311743027,1705372245903,-2016.66,0.00024583,2]
[311743029,1705372245913,-200.0,0.00024658,2]
[311743031,1705372245921,-2016.66,0.00024857,2]
[311743033,1705372245930,-500.0,0.00025116,4]
[311743035,1705372245939,-500.0,0.00025116,4]
[311743037,1705372245948,-500.0,0.00025116,4]
[311743038,1705372245957,-555.50066339,0.00025116,4]
[311743040,1705372245967,-500.0,0.00025116,4]
[311743042,1705372245976,-500.0,0.00025116,4]
[311743044,1705372245985,-500.0,0.00025116,4]
[311743047,1705372245995,-194.25956718,0.00025116,4]
[311743049,1705372246004,-106.13138253,0.00025116,4]
[311743454,1705372281851,-155.52584723,0.00021096,2]
[311743455,1705372281877,-149.26830005,0.00021096,2]
[311743456,1705372281935,-6.22028872,0.00021096,2]
[311743468,1705372322553,-155.0,0.00021095,2]
[311743469,1705372322580,-149.20303344,0.00021096,2]
[311743470,1705372322664,-6.20822517,0.00021096,2]
[311743482,1705372533522,168.52305,0.00020906,2]
[311743486,1705372599381,-12000.0,0.00021178,2]
[311743487,1705372599563,-12000.0,0.00021178,2]
[311743488,1705372599661,-900.0,0.00021178,2]
[311743492,1705372631452,-336.37210712,0.00021159,2]
[311743493,1705372631610,-6.86473688,0.00021159,2]
[311743525,1705373148532,-12000.0,0.00021107,2]
[311743526,1705373148633,-12000.0,0.00021107,2]
[311743527,1705373148788,-900.0,0.00021107,2]
[311743534,1705373206313,-154.98450155,0.00021102,2]
[311743535,1705373206339,-165.08636353,0.00021103,2]
[311743536,1705373206374,-6.53205847,0.00021103,2]
[311743581,1705373431932,-213.18676181,0.00021849,2]
[311743583,1705373431941,-1580.49780472,0.0002185,2]
[311743585,1705373431951,-175.0415776,0.00021851,2]
[311743587,1705373431960,-154.98450155,0.00021851,2]
[311743589,1705373431969,-154.98450155,0.00021852,2]
[311743591,1705373431978,-688.53642166,0.00021853,2]
[311743592,1705373431988,-167.678616,0.00021918,2]
[311743594,1705373431997,-300.55932873,0.00021948,2]
[311743596,1705373432008,-296.69780237,0.00021948,2]
[311743597,1705373432017,-155.37602413,0.00021948,2]
[311743599,1705373432027,-215.07395846,0.00021948,2]
[311743601,1705373432036,-1743.77135027,0.00021948,2]
[311743603,1705373432046,-301.03236458,0.00021949,2]
[311743605,1705373432055,-5941.69376135,0.0002195,2]
[311743607,1705373432063,-500.0,0.00022103,2]
[311743609,1705373432072,-372.06953582,0.00022103,2]
[311743714,1705373438147,-127.93046418,0.00022103,2]
[311743716,1705373438159,-802.34,0.00022103,2]
[311743717,1705373438170,-252.70071424,0.00022103,2]
[311743719,1705373438180,-246.19657285,0.00022115,2]
[311743721,1705373438192,-229.1960968,0.00022115,2]
[311743723,1705373438202,-500.0,0.00022116,2]
[311743725,1705373438212,-46.1398962,0.00022116,2]
[311744222,1705373488647,154.98450155,0.00019903,3]
[311744223,1705373497004,-175.0415776,0.00021102,2]
[311744224,1705373497032,-148.85892851,0.00021103,2]
[311744225,1705373497437,-6.61021441,0.00021103,2]
[311744264,1705373659554,154.9690052,0.000176,2]
[311744277,1705373703507,-688.53642166,0.00021487,2]
[311744278,1705373703533,-154.41532513,0.00021488,2]
[311744279,1705373703786,-17.20309687,0.00021488,2]
[311744281,1705373734496,884.63202927,0.0001985,2]
[311744442,1705374335956,589.75468618,0.00020016,2]
[311744515,1705374632179,-688.53642166,0.00021917,2]
[311744516,1705374632190,-167.172641,0.00021918,2]
[311744518,1705374632201,-500.0,0.00022102,2]
[311744520,1705374632212,-522.79816863,0.00022108,2]
[311744522,1705374632222,-3839.62310555,0.00022108,2]
[311744524,1705374632233,-951.95263189,0.00022108,2]
[311744595,1705374638259,-5346.21689605,0.00022108,2]
[311744596,1705374638269,-207.84190383,0.00022109,2]
[311744597,1705374638278,-843.49033877,0.00022111,2]
[311744598,1705374638290,-680.1998283,0.00022112,2]
[311744599,1705374638303,-1738.31995521,0.00022114,2]
[311744600,1705374638316,-213.33404048,0.00022114,2]
[311744601,1705374638328,-1579.1465679,0.00022114,2]
[311744602,1705374638341,-155.39876402,0.00022114,2]
[311744603,1705374638352,-155.02790502,0.00022114,2]
[311744604,1705374638363,-396.57926146,0.00022114,2]
[311744605,1705374638374,-175.32387497,0.00022114,2]
[311744606,1705374638386,-193.59611591,0.00022115,2]
[311744607,1705374638398,-155.34879761,0.00022115,2]
[311744608,1705374638409,-36916.98061949,0.00022115,2]
[311744609,1705374638422,-155.56238873,0.00022116,2]
[311744610,1705374638435,-500.0,0.00022116,2]
[311744611,1705374638446,-500.0,0.00022116,2]
[311744612,1705374638458,-500.0,0.00022116,2]
[311744613,1705374638471,-611.29480894,0.00022116,2]
[311744614,1705374638482,-500.0,0.00022116,2]
[311744615,1705374638492,-1093.88,0.00022116,2]
[311744616,1705374638504,-500.0,0.00022116,2]
[311744617,1705374638517,-379.83775089,0.0002239,2]
[311744618,1705374638528,-500.0,0.0002239,2]
[311744619,1705374638540,-500.0,0.0002239,2]
[311744620,1705374638551,-500.0,0.0002239,2]
[311744622,1705374638562,-1093.88,0.0002239,2]
[311744623,1705374638573,-500.0,0.0002239,2]
[311744626,1705374638586,-2885.91,0.00022653,3]
[311744628,1705374638597,-2404.93,0.00022653,3]
[311744629,1705374638608,-507.76,0.00022663,2]
[311744631,1705374638618,-5671.64,0.00022663,2]
[311744633,1705374638628,-500.0,0.00022663,2]
[311744636,1705374638641,-1571.81,0.00022663,2]
[311744638,1705374638653,-8387.89,0.00022663,2]
[311744640,1705374638664,-500.0,0.00022664,2]
[311744643,1705374638677,-500.0,0.00022664,2]
[311744645,1705374638687,-500.0,0.00022664,2]
[311744647,1705374638699,-1093.88,0.00022664,2]
[311744649,1705374638709,-500.0,0.00022664,2]
[311744651,1705374638720,-500.0,0.000227,2]
[311744654,1705374638732,-500.0,0.000227,2]
[311744656,1705374638743,-500.0,0.000227,2]
[311744658,1705374638754,-427.65337724,0.000227,2]
[311744660,1705374638766,-500.0,0.000227,2]
[311744662,1705374638778,-503.5898328,0.00022701,2]
[311744665,1705374638790,-500.0,0.00022701,2]
[311744667,1705374638802,-500.0,0.00022701,2]
[311744669,1705374638815,-500.0,0.00022701,2]
[311744672,1705374638826,-500.0,0.00022701,2]
[311744674,1705374638837,-500.0,0.00022701,2]
[311744676,1705374638847,-500.0,0.00022701,2]
[311744678,1705374638857,-506.18783896,0.00022701,2]
[311744680,1705374638866,-566.48,0.00022701,2]
[311744682,1705374638877,-568.18551368,0.00022701,2]
[311744684,1705374638888,-2077.39,0.00022701,2]
[311744686,1705374638899,-505.87271988,0.00022701,2]
[311744689,1705374638911,-500.0,0.00022701,2]
[311744691,1705374638921,-500.0,0.00022701,2]
[311744693,1705374638932,-500.0,0.00022701,2]
[311744695,1705374638944,-525.27213856,0.00022701,2]
[311744697,1705374638955,-500.0,0.00022701,2]
[311744699,1705374638966,-500.0,0.00022701,2]
[311744702,1705374638976,-500.0,0.00022701,2]
[311744704,1705374638987,-502.03137256,0.00022701,2]
[311744706,1705374638996,-500.0,0.00022701,2]
[311744708,1705374639007,-500.0,0.00022702,2]
[311744710,1705374639017,-500.0,0.00022702,2]
[311744712,1705374639027,-500.0,0.00022702,2]
[311744714,1705374639038,-500.0,0.00022702,2]
[311744717,1705374639049,-501.88991744,0.00022702,2]
[311744719,1705374639060,-503.51586412,0.00022702,2]
[311744721,1705374639071,-500.0,0.00022702,2]
[311744723,1705374639081,-692.45,0.00022702,2]
[311744725,1705374639093,-500.0,0.00022702,2]
[311744727,1705374639103,-534.87,0.00022702,2]
[311744729,1705374639115,-500.0,0.00022702,2]
[311744732,1705374639130,-500.0,0.00022702,2]
[311744734,1705374639141,-977.41,0.00022702,2]
[311744736,1705374639151,-500.0,0.00022702,2]
[311744739,1705374639163,-500.0,0.00022702,2]
[311744741,1705374639173,-501.86522997,0.00022703,5]
[311744743,1705374639184,-167.172641,0.00022773,2]
[311744745,1705374639199,-219.05179952,0.00022837,2]
[311744747,1705374639210,-693.01,0.00022936,2]
[311744749,1705374639220,-500.0,0.00022936,2]
[311744751,1705374639231,-553.89,0.00022936,2]
[311744754,1705374639246,-1254.32,0.00022937,2]
[311744756,1705374639257,-500.0,0.00022937,2]
[311744758,1705374639269,-504.95,0.00022937,2]
[311744760,1705374639280,-2649.27,0.00022937,2]
[311744762,1705374639291,-2101.13,0.00022937,2]
[311744764,1705374639301,-507.76,0.00022937,2]
[311744767,1705374639312,-1135.07,0.00022937,2]
[311744769,1705374639322,-5671.64,0.00022937,2]
[311744771,1705374639332,-500.0,0.00022937,2]
[311744773,1705374639343,-553.58,0.00022937,2]
[311744775,1705374639353,-500.0,0.00022937,2]
[311744777,1705374639365,-1571.81,0.00022937,2]
[311744792,1705374639485,-500.0,0.00022937,2]
[311744794,1705374639498,-1537.75,0.00022937,2]
[311744796,1705374639507,-8387.89,0.00022937,2]
[311744798,1705374639517,-500.0,0.00022938,2]
[311744800,1705374639526,-500.0,0.00022938,2]
[311744802,1705374639535,-500.0,0.00022938,2]
[311744804,1705374639544,-1093.88,0.00022938,2]
[311744806,1705374639553,-500.0,0.00022938,2]
[311744808,1705374639562,-440.14628887,0.00022974,2]
[311744810,1705374639570,-500.0,0.00022974,2]
[311744812,1705374639579,-262.80785604,0.00022974,2]
[311744814,1705374639589,-500.0,0.00022974,2]
[311744816,1705374639598,-451.66104881,0.00022975,2]
[311744818,1705374639607,-500.0,0.00022975,2]
[311744820,1705374639616,-500.0,0.00022975,2]
[311744822,1705374639625,-500.0,0.00022975,2]
[311744824,1705374639633,-500.0,0.00022975,2]
[311744826,1705374639642,-566.48,0.00022975,2]
[311744828,1705374639651,-2077.39,0.00022975,2]
[311744830,1705374639660,-593.85741484,0.00022975,2]
[311744831,1705374639669,-500.0,0.00022975,2]
[311744833,1705374639678,-500.0,0.00022975,2]
[311744835,1705374639687,-500.0,0.00022975,2]
[311744837,1705374639696,-500.0,0.00022975,2]
[311744839,1705374639705,-500.0,0.00022975,2]
[311744841,1705374639715,-500.0,0.00022976,2]
[311744843,1705374639724,-500.0,0.00022976,2]
[311744845,1705374639733,-692.45,0.00022976,2]
[311744847,1705374639742,-500.0,0.00022976,2]
[311744849,1705374639751,-534.87,0.00022976,2]
[311744851,1705374639760,-500.0,0.00022976,2]
[311744853,1705374639769,-500.0,0.00022976,2]
[311744855,1705374639779,-977.41,0.00022976,2]
[311744857,1705374639788,-500.0,0.00022976,2]
[311744859,1705374639798,-500.0,0.00022976,2]
[311744861,1705374639806,-3969.16922576,0.0002315,2]
[311744863,1705374639815,-693.01,0.0002321,2]
[311744865,1705374639824,-500.0,0.0002321,2]
[311744867,1705374639833,-553.89,0.0002321,2]
[311744869,1705374639842,-1254.32,0.00023211,2]
[311744871,1705374639852,-500.0,0.00023211,2]
[311744873,1705374639861,-504.95,0.00023211,2]
[311744875,1705374639870,-2649.27,0.00023211,2]
[311744877,1705374639879,-2101.13,0.00023211,2]
[311744879,1705374639888,-507.76,0.00023211,2]
[311744881,1705374639897,-1135.07,0.00023211,2]
[311744883,1705374639906,-5671.64,0.00023211,2]
[311744885,1705374639915,-500.0,0.00023211,2]
[311744887,1705374639924,-553.58,0.00023211,2]
[311744889,1705374639933,-500.0,0.00023211,2]
[311744891,1705374639942,-1571.81,0.00023211,2]
[311744893,1705374639950,-500.0,0.00023211,2]
[311744895,1705374639960,-1537.75,0.00023211,2]
[311744897,1705374639969,-8387.89,0.00023211,2]
[311744899,1705374639978,-500.0,0.00023212,2]
[311744901,1705374639987,-500.0,0.00023212,2]
[311744903,1705374639997,-500.0,0.00023212,2]
[311744905,1705374640007,-1093.88,0.00023212,2]
[311744907,1705374640016,-500.0,0.00023212,2]
[311744909,1705374640026,-500.0,0.00023248,2]
[311744911,1705374640035,-500.0,0.00023248,2]
[311744913,1705374640045,-500.0,0.00023249,2]
[311744915,1705374640054,-500.0,0.00023249,2]
[311744917,1705374640062,-500.0,0.00023249,2]
[311744919,1705374640072,-500.0,0.00023249,2]
[311744921,1705374640081,-566.48,0.00023249,2]
[311744923,1705374640091,-2077.39,0.00023249,2]
[311744925,1705374640099,-500.0,0.00023249,2]
[311744927,1705374640108,-500.0,0.00023249,2]
[311744928,1705374640118,-500.0,0.00023249,2]
[311744929,1705374640127,-500.0,0.00023249,2]
[311744930,1705374640136,-185.49212337,0.00023249,2]
[311744931,1705374640145,-500.0,0.0002325,2]
[311744932,1705374640154,-500.0,0.0002325,2]
[311744933,1705374640163,-692.45,0.0002325,2]
[311744934,1705374640172,-500.0,0.0002325,2]
[311744935,1705374640181,-534.87,0.0002325,2]
[311744936,1705374640191,-500.0,0.0002325,2]
[311744937,1705374640200,-500.0,0.0002325,2]
[311744938,1705374640209,-977.41,0.0002325,2]
[311744939,1705374640218,-500.0,0.0002325,2]
[311744940,1705374640227,-500.0,0.0002325,2]
[311744941,1705374640236,-219.0517995,0.00023357,2]
[311744942,1705374640246,-693.01,0.00023484,2]
[311744943,1705374640255,-500.0,0.00023484,2]
[311744944,1705374640264,-553.89,0.00023484,2]
[311744945,1705374640273,-1254.32,0.00023485,2]
[311744946,1705374640282,-500.0,0.00023485,2]
[311744947,1705374640292,-504.95,0.00023485,2]
[311744948,1705374640301,-2649.27,0.00023485,2]
[311744949,1705374640310,-2101.13,0.00023485,2]
[311744950,1705374640319,-507.76,0.00023485,2]
[311744951,1705374640328,-1135.07,0.00023485,2]
[311744952,1705374640337,-5671.64,0.00023485,2]
[311744953,1705374640346,-500.0,0.00023485,2]
[311744954,1705374640355,-553.58,0.00023485,2]
[311744955,1705374640364,-500.0,0.00023485,2]
[311744956,1705374640373,-1571.81,0.00023485,2]
[311744957,1705374640382,-500.0,0.00023485,2]
[311744959,1705374640391,-1537.75,0.00023485,2]
[311744961,1705374640401,-8387.89,0.00023485,2]
[311744963,1705374640410,-500.0,0.00023486,2]
[311744965,1705374640420,-432.31575709,0.00023486,2]
[311744967,1705374640429,-500.0,0.00023486,2]
[311744969,1705374640438,-1093.88,0.00023486,2]
[311744971,1705374640448,-500.0,0.00023522,2]
[311744973,1705374640458,-500.0,0.00023523,2]
[311744975,1705374640467,-500.0,0.00023523,2]
[311744977,1705374640476,-500.0,0.00023523,2]
[311744979,1705374640485,-500.0,0.00023523,2]
[311744981,1705374640494,-566.48,0.00023523,2]
[311744983,1705374640503,-2077.39,0.00023523,2]
[311744985,1705374640512,-500.0,0.00023523,2]
[311744987,1705374640521,-500.0,0.00023523,2]
[311744989,1705374640530,-500.0,0.00023523,2]
[311744991,1705374640539,-500.0,0.00023523,2]
[311744993,1705374640548,-500.0,0.00023524,2]
[311744995,1705374640557,-498.48161421,0.00023524,2]
[311744997,1705374640567,-692.45,0.00023524,2]
[311744999,1705374640576,-500.0,0.00023524,2]
[311745001,1705374640585,-534.87,0.00023524,2]
[311745003,1705374640594,-500.0,0.00023524,2]
[311745005,1705374640603,-500.0,0.00023524,2]
[311745007,1705374640612,-977.41,0.00023524,2]
[311745009,1705374640621,-500.0,0.00023524,2]
[311745011,1705374640631,-500.0,0.00023524,2]
[311745013,1705374640640,-167.172641,0.00023627,2]
[311745015,1705374640650,-693.01,0.00023758,2]
[311745017,1705374640660,-500.0,0.00023758,2]
[311745019,1705374640669,-245.90750508,0.00023759,2]
[311745021,1705374640678,-1254.32,0.00023759,2]
[311745023,1705374640688,-504.95,0.00023759,2]
[311745025,1705374640697,-2649.27,0.00023759,2]
[311745027,1705374640706,-2101.13,0.00023759,2]
[311745029,1705374640716,-507.76,0.00023759,2]
[311745031,1705374640725,-1135.07,0.00023759,2]
[311745033,1705374640734,-5671.64,0.00023759,2]
[311745035,1705374640743,-500.0,0.00023759,2]
[311745037,1705374640753,-553.58,0.00023759,2]
[311745039,1705374640762,-500.0,0.00023759,2]
[311745041,1705374640772,-1571.81,0.00023759,2]
[311745043,1705374640782,-500.0,0.00023759,2]
[311745045,1705374640791,-1537.75,0.00023759,2]
[311745047,1705374640800,-8387.89,0.00023759,2]
[311745049,1705374640809,-574.05179743,0.0002376,2]
[311745051,1705374640819,-500.0,0.0002376,2]
[311745053,1705374640828,-1093.88,0.0002376,2]
[311745055,1705374640836,-500.0,0.00023796,2]
[311745057,1705374640846,-500.0,0.00023797,2]
[311745059,1705374640855,-500.0,0.00023797,2]
[311745061,1705374640864,-500.0,0.00023797,2]
[311745063,1705374640874,-500.0,0.00023797,2]
[311745065,1705374640883,-566.48,0.00023797,2]
[311745067,1705374640892,-2077.39,0.00023797,2]
[311745069,1705374640900,-500.0,0.00023797,2]
[311745071,1705374640909,-500.0,0.00023797,2]
[311745073,1705374640918,-500.0,0.00023797,2]
[311745075,1705374640928,-500.0,0.00023797,2]
[311745077,1705374640937,-500.0,0.00023798,2]
[311745079,1705374640946,-692.45,0.00023798,2]
[311745081,1705374640956,-500.0,0.00023798,2]
[311745083,1705374640965,-534.87,0.00023798,2]
[311745085,1705374640974,-500.0,0.00023798,2]
[311745087,1705374640983,-500.0,0.00023798,2]
[311745089,1705374640992,-977.41,0.00023798,2]
[311745091,1705374641004,-500.0,0.00023798,2]
[311745093,1705374641013,-500.0,0.00023798,2]
[311745095,1705374641022,-219.0517995,0.00023877,2]
[311745097,1705374641031,-50000.0,0.00023973,2]
[311745099,1705374641040,-693.01,0.00024032,2]
[311745101,1705374641049,-500.0,0.00024032,2]
[311745103,1705374641058,-1254.32,0.00024033,2]
[311745105,1705374641067,-504.95,0.00024033,2]
[311745107,1705374641076,-2649.27,0.00024033,2]
[311745109,1705374641085,-2101.13,0.00024033,2]
[311745111,1705374641093,-507.76,0.00024033,2]
[311745113,1705374641102,-1135.07,0.00024033,2]
[311745115,1705374641111,-5671.64,0.00024033,2]
[311745117,1705374641120,-500.0,0.00024033,2]
[311745118,1705374641130,-553.58,0.00024033,2]
[311745120,1705374641139,-500.0,0.00024033,2]